[Event "Early-Titled-Tuesday-Blitz-May-14-2024"]
[Site "Chess.com"]
[Date "2024.05.14"]
[Round "5"]
[White "artin10862"]
[Black "h4parah5"]
[Result "0-1"]
[WhiteElo "2863"]
[BlackElo "3039"]
[TimeControl "180+1"]
[EndTime "8:55:42 PDT"]
[Termination "h4parah5 won by resignation"]

1. e4 {[%clk 0:02:51.9]} 1... c5 {[%clk 0:02:59.7]} 2. Nf3 {[%clk 0:02:49.7]}
2... Nc6 {[%clk 0:02:59.5]} 3. Nc3 {[%clk 0:02:49.4]} 3... Nf6 {[%clk
0:02:58.1]} 4. d4 {[%clk 0:02:48.5]} 4... cxd4 {[%clk 0:02:58]} 5. Nxd4 {[%clk
0:02:49.4]} 5... h5 {[%clk 0:02:58.6]} 6. Bg5 {[%clk 0:02:40.8]} 6... Qa5 {[%clk
0:02:57.7]} 7. h4 {[%clk 0:02:33.3]} 7... Nxe4 {[%clk 0:02:56.1]} 8. Nb3 {[%clk
0:02:14]} 8... Nxc3 {[%clk 0:02:47.2]} 9. Nxa5 {[%clk 0:02:13.8]} 9... Nxd1
{[%clk 0:02:47.2]} 10. Nxc6 {[%clk 0:02:14.4]} 10... Nxf2 {[%clk 0:02:47.3]} 11.
Kxf2 {[%clk 0:02:12.4]} 11... bxc6 {[%clk 0:02:43.1]} 12. Bd3 {[%clk 0:02:11.3]}
12... e6 {[%clk 0:02:36.2]} 13. Be3 {[%clk 0:02:09.3]} 13... Be7 {[%clk
0:02:32.5]} 14. g3 {[%clk 0:02:04.4]} 14... a5 {[%clk 0:02:31.2]} 15. c3 {[%clk
0:02:03.9]} 15... d5 {[%clk 0:02:27.4]} 16. Bd4 {[%clk 0:01:52.5]} 16... Bf6
{[%clk 0:02:15.3]} 17. b3 {[%clk 0:01:48.4]} 17... Ba6 {[%clk 0:02:13.6]} 18.
Bc2 {[%clk 0:01:48.1]} 18... c5 {[%clk 0:02:03.3]} 19. Bxf6 {[%clk 0:01:47.3]}
19... gxf6 {[%clk 0:02:03.1]} 20. Rhe1 {[%clk 0:01:45]} 20... Kd7 {[%clk
0:02:00.7]} 21. Re3 {[%clk 0:01:45.4]} 21... f5 {[%clk 0:01:59.3]} 22. Rd1
{[%clk 0:01:45]} 22... Kd6 {[%clk 0:01:57.9]} 23. Rd2 {[%clk 0:01:42.7]} 23...
Bb7 {[%clk 0:01:57.3]} 24. Bd1 {[%clk 0:01:41.6]} 24... Bc6 {[%clk 0:01:55]} 25.
Bc2 {[%clk 0:01:40.1]} 25... Rab8 {[%clk 0:01:46.5]} 26. a3 {[%clk 0:01:39.3]}
26... Ke7 {[%clk 0:01:37.5]} 27. Ke1 {[%clk 0:01:30.4]} 27... Kf6 {[%clk
0:01:35.9]} 28. Kf2 {[%clk 0:01:26.9]} 28... Rhd8 {[%clk 0:01:35.4]} 29. Red3
{[%clk 0:01:23.3]} 29... e5 {[%clk 0:01:30.4]} 30. Rf3 {[%clk 0:01:19.7]} 30...
e4 {[%clk 0:01:30.5]} 31. Rf4 {[%clk 0:01:16.3]} 31... d4 {[%clk 0:01:29.4]} 32.
Ke1 {[%clk 0:01:04.3]} 32... d3 {[%clk 0:01:22.5]} 33. Bd1 {[%clk 0:01:03.6]}
33... e3 {[%clk 0:01:21.5]} 34. Rh2 {[%clk 0:01:02.2]} 34... e2 {[%clk
0:01:19.2]} 0-1

[Event "Early-Titled-Tuesday-Blitz-May-14-2024"]
[Site "Chess.com"]
[Date "2024.05.14"]
[Round "5"]
[White "laiciffOneslraCsungaM"]
[Black "js20000"]
[Result "0-1"]
[WhiteElo "2420"]
[BlackElo "2756"]
[TimeControl "180+1"]
[EndTime "8:55:50 PDT"]
[Termination "js20000 won by resignation"]

1. Nf3 {[%clk 0:03:00.9]} 1... g6 {[%clk 0:02:59.6]} 2. g3 {[%clk 0:03:00.8]}
2... Bg7 {[%clk 0:02:59.7]} 3. Bg2 {[%clk 0:03:01.4]} 3... e5 {[%clk 0:02:58.5]}
4. O-O {[%clk 0:02:57.3]} 4... d5 {[%clk 0:02:57.8]} 5. d3 {[%clk 0:02:51.5]}
5... Nc6 {[%clk 0:02:57.6]} 6. Nbd2 {[%clk 0:02:50.3]} 6... Nf6 {[%clk
0:02:57.5]} 7. c4 {[%clk 0:02:49.9]} 7... d4 {[%clk 0:02:56.8]} 8. a3 {[%clk
0:02:49]} 8... a5 {[%clk 0:02:55.2]} 9. b3 {[%clk 0:02:47.9]} 9... O-O {[%clk
0:02:54.2]} 10. Bb2 {[%clk 0:02:48.5]} 10... Re8 {[%clk 0:02:51.7]} 11. Ne1
{[%clk 0:02:37]} 11... Bf5 {[%clk 0:02:50]} 12. Ne4 {[%clk 0:02:36.7]} 12...
Nxe4 {[%clk 0:02:47]} 13. dxe4 {[%clk 0:02:36.9]} 13... Be6 {[%clk 0:02:47.5]}
14. Nd3 {[%clk 0:02:37.4]} 14... a4 {[%clk 0:02:47.5]} 15. Nc5 {[%clk
0:02:28.3]} 15... Na5 {[%clk 0:02:43.1]} 16. Nxa4 {[%clk 0:02:18.4]} 16... b6
{[%clk 0:02:35.3]} 17. Bc1 {[%clk 0:02:08.8]} 17... b5 {[%clk 0:02:29]} 18. Nb2
{[%clk 0:01:50.7]} 18... bxc4 {[%clk 0:02:28.1]} 19. bxc4 {[%clk 0:01:51.2]}
19... Nxc4 {[%clk 0:02:28]} 20. Nxc4 {[%clk 0:01:43.7]} 20... Bxc4 {[%clk
0:02:28.9]} 21. a4 {[%clk 0:01:42.4]} 21... Bf8 {[%clk 0:02:23.5]} 22. Bd2
{[%clk 0:01:40.9]} 22... Ba6 {[%clk 0:02:22.7]} 23. a5 {[%clk 0:01:39.7]} 23...
c5 {[%clk 0:02:22.8]} 24. Qa4 {[%clk 0:01:33.6]} 24... c4 {[%clk 0:02:22.6]} 25.
Rfd1 {[%clk 0:01:33.7]} 25... Qc7 {[%clk 0:02:18.3]} 26. Bb4 {[%clk 0:01:24.5]}
26... c3 {[%clk 0:02:17]} 27. Bxf8 {[%clk 0:01:22.2]} 27... Rxf8 {[%clk
0:02:14.7]} 28. Bf1 {[%clk 0:01:06.3]} 28... Rfb8 {[%clk 0:02:13.9]} 29. e3
{[%clk 0:01:05.5]} 29... Bxf1 {[%clk 0:02:10.9]} 30. Kxf1 {[%clk 0:01:03.1]}
30... c2 {[%clk 0:02:10.1]} 31. Rdc1 {[%clk 0:00:55.5]} 31... d3 {[%clk
0:02:09.2]} 32. Kg2 {[%clk 0:00:45.9]} 32... Rc8 {[%clk 0:01:45.3]} 33. Qb4
{[%clk 0:00:41.2]} 33... Qc3 {[%clk 0:01:44.9]} 0-1

[Event "Early-Titled-Tuesday-Blitz-May-14-2024"]
[Site "Chess.com"]
[Date "2024.05.14"]
[Round "5"]
[White "Ginger_GM"]
[Black "xakevicius91"]
[Result "1-0"]
[WhiteElo "2660"]
[BlackElo "2497"]
[TimeControl "180+1"]
[EndTime "8:55:56 PDT"]
[Termination "Ginger_GM won by resignation"]

1. c4 {[%clk 0:03:00.9]} 1... Nf6 {[%clk 0:02:58.4]} 2. Nc3 {[%clk 0:02:59.5]}
2... c5 {[%clk 0:02:49.2]} 3. e4 {[%clk 0:02:56.3]} 3... Nc6 {[%clk 0:02:46.8]}
4. g3 {[%clk 0:02:56.1]} 4... d6 {[%clk 0:02:44]} 5. Bg2 {[%clk 0:02:56.1]} 5...
g6 {[%clk 0:02:41.3]} 6. Nge2 {[%clk 0:02:55.8]} 6... h5 {[%clk 0:02:36.4]} 7.
h3 {[%clk 0:02:53.4]} 7... e5 {[%clk 0:02:35.6]} 8. d3 {[%clk 0:02:51.8]} 8...
Be6 {[%clk 0:02:30.6]} 9. Nd5 {[%clk 0:02:46.8]} 9... h4 {[%clk 0:02:22.6]} 10.
g4 {[%clk 0:02:46.6]} 10... Nd7 {[%clk 0:02:14.2]} 11. O-O {[%clk 0:02:41]}
11... g5 {[%clk 0:02:14.2]} 12. Rb1 {[%clk 0:02:34.4]} 12... Be7 {[%clk
0:02:03.2]} 13. a3 {[%clk 0:02:32.3]} 13... O-O {[%clk 0:02:01.7]} 14. b4 {[%clk
0:02:32]} 14... b6 {[%clk 0:02:01.8]} 15. Be3 {[%clk 0:02:24.2]} 15... f6 {[%clk
0:01:59.8]} 16. Qd2 {[%clk 0:02:15.6]} 16... Nd4 {[%clk 0:01:57.7]} 17. Nec3
{[%clk 0:02:03.6]} 17... Re8 {[%clk 0:01:24.4]} 18. f3 {[%clk 0:02:03.1]} 18...
Bf8 {[%clk 0:01:23.4]} 19. Rb2 {[%clk 0:01:58.6]} 19... Nb8 {[%clk 0:01:08.8]}
20. Bxd4 {[%clk 0:01:54.7]} 20... cxd4 {[%clk 0:01:07.7]} 21. Na2 {[%clk
0:01:49.4]} 21... Bxd5 {[%clk 0:01:06.8]} 22. cxd5 {[%clk 0:01:46.8]} 22... Nd7
{[%clk 0:01:05.4]} 23. Rc1 {[%clk 0:01:41.1]} 23... Rc8 {[%clk 0:01:05]} 24. Rc6
{[%clk 0:01:34.9]} 24... Nb8 {[%clk 0:01:04.7]} 25. b5 {[%clk 0:01:32.8]} 25...
Be7 {[%clk 0:01:03]} 26. Rbc2 {[%clk 0:01:29.5]} 26... Qd7 {[%clk 0:01:03.3]}
27. Nb4 {[%clk 0:01:26]} 27... Nxc6 {[%clk 0:00:58.2]} 28. dxc6 {[%clk
0:01:24.2]} 28... Qe6 {[%clk 0:00:56.2]} 29. Nd5 {[%clk 0:01:24.1]} 29... Bd8
{[%clk 0:00:55.5]} 30. Qb4 {[%clk 0:01:15.9]} 30... Bc7 {[%clk 0:00:54.3]} 31.
Bf1 {[%clk 0:01:14.1]} 31... Kf7 {[%clk 0:00:54.4]} 32. Be2 {[%clk 0:01:13.7]}
32... Rg8 {[%clk 0:00:53.8]} 33. Bd1 {[%clk 0:01:07.1]} 33... Rge8 {[%clk
0:00:53]} 34. Rc1 {[%clk 0:01:06.2]} 34... Rg8 {[%clk 0:00:52.9]} 35. Bb3 {[%clk
0:01:06]} 1-0

[Event "Early-Titled-Tuesday-Blitz-May-14-2024"]
[Site "Chess.com"]
[Date "2024.05.14"]
[Round "5"]
[White "ab-lsv"]
[Black "yuriydovzik"]
[Result "0-1"]
[WhiteElo "2343"]
[BlackElo "2162"]
[TimeControl "180+1"]
[EndTime "8:56:09 PDT"]
[Termination "yuriydovzik won by checkmate"]

1. d4 {[%clk 0:02:59.4]} 1... Nf6 {[%clk 0:02:45.3]} 2. c4 {[%clk 0:02:59.3]}
2... e6 {[%clk 0:02:44.4]} 3. Nc3 {[%clk 0:02:59.3]} 3... Bb4 {[%clk 0:02:43.6]}
4. Qc2 {[%clk 0:02:59.7]} 4... d5 {[%clk 0:02:40.2]} 5. cxd5 {[%clk 0:03:00.6]}
5... exd5 {[%clk 0:02:35.2]} 6. Bg5 {[%clk 0:03:00.2]} 6... h6 {[%clk
0:02:27.2]} 7. Bh4 {[%clk 0:03:00]} 7... O-O {[%clk 0:02:24.1]} 8. e3 {[%clk
0:03:00]} 8... c5 {[%clk 0:02:19.3]} 9. dxc5 {[%clk 0:03:00.9]} 9... Nc6 {[%clk
0:02:07.9]} 10. Bb5 {[%clk 0:02:25.7]} 10... g5 {[%clk 0:01:56.4]} 11. Bg3
{[%clk 0:02:25.4]} 11... d4 {[%clk 0:01:54.7]} 12. Bxc6 {[%clk 0:02:10.8]} 12...
dxc3 {[%clk 0:01:53]} 13. bxc3 {[%clk 0:02:09.9]} 13... Bf5 {[%clk 0:01:31.4]}
14. Qd2 {[%clk 0:01:17.7]} 14... Qxd2+ {[%clk 0:01:13.6]} 15. Kxd2 {[%clk
0:01:17.6]} 15... Rad8+ {[%clk 0:01:06.1]} 16. Ke2 {[%clk 0:00:12.6]} 16... Bxc3
{[%clk 0:01:04.3]} 17. Rc1 {[%clk 0:00:12.7]} 17... Rd2+ {[%clk 0:01:00.4]} 18.
Kf3 {[%clk 0:00:12.7]} 18... Bg4# {[%clk 0:00:58.2]} 0-1

[Event "Early-Titled-Tuesday-Blitz-May-14-2024"]
[Site "Chess.com"]
[Date "2024.05.14"]
[Round "5"]
[White "Baronessa08"]
[Black "Flaccidmoves"]
[Result "1-0"]
[WhiteElo "2595"]
[BlackElo "2422"]
[TimeControl "180+1"]
[EndTime "8:56:12 PDT"]
[Termination "Baronessa08 won by checkmate"]

1. c4 {[%clk 0:03:00.9]} 1... e6 {[%clk 0:02:57.2]} 2. Nc3 {[%clk 0:02:59.6]}
2... d5 {[%clk 0:02:57.8]} 3. d4 {[%clk 0:02:59.5]} 3... Be7 {[%clk 0:02:55.4]}
4. cxd5 {[%clk 0:02:58.6]} 4... exd5 {[%clk 0:02:56.3]} 5. Bf4 {[%clk
0:02:58.9]} 5... c6 {[%clk 0:02:54.6]} 6. e3 {[%clk 0:02:59]} 6... Bf5 {[%clk
0:02:51]} 7. g4 {[%clk 0:02:58.7]} 7... Be6 {[%clk 0:02:48]} 8. Bd3 {[%clk
0:02:52.3]} 8... Nd7 {[%clk 0:02:41]} 9. h4 {[%clk 0:02:41.5]} 9... h5 {[%clk
0:02:32.8]} 10. g5 {[%clk 0:02:40.4]} 10... Bb4 {[%clk 0:02:07.6]} 11. Qb3
{[%clk 0:02:31.6]} 11... Bxc3+ {[%clk 0:02:06]} 12. bxc3 {[%clk 0:02:25]} 12...
Qb6 {[%clk 0:02:05.4]} 13. Nf3 {[%clk 0:02:22.4]} 13... Ne7 {[%clk 0:02:02.8]}
14. Qc2 {[%clk 0:02:15.3]} 14... g6 {[%clk 0:02:01.8]} 15. Rb1 {[%clk
0:02:12.2]} 15... Qa5 {[%clk 0:01:58]} 16. Rxb7 {[%clk 0:02:10.4]} 16... Bf5
{[%clk 0:01:50.8]} 17. Ne5 {[%clk 0:01:58.4]} 17... Bxd3 {[%clk 0:01:36.8]} 18.
Qxd3 {[%clk 0:01:57.1]} 18... Nxe5 {[%clk 0:01:30.3]} 19. Bxe5 {[%clk
0:01:56.5]} 19... Rg8 {[%clk 0:01:23.4]} 20. O-O {[%clk 0:01:55.8]} 20... Kf8
{[%clk 0:01:08.4]} 21. Rfb1 {[%clk 0:01:49.7]} 21... Nc8 {[%clk 0:00:55.5]} 22.
Rb8 {[%clk 0:01:46.8]} 22... Rxb8 {[%clk 0:00:55.1]} 23. Rxb8 {[%clk 0:01:47.7]}
23... Ke7 {[%clk 0:00:51.2]} 24. e4 {[%clk 0:01:38.5]} 24... Re8 {[%clk
0:00:43.8]} 25. Qf3 {[%clk 0:01:30.1]} 25... dxe4 {[%clk 0:00:24.5]} 26. Qf6+
{[%clk 0:01:26.5]} 26... Kf8 {[%clk 0:00:19.1]} 27. Qh8+ {[%clk 0:01:20.2]}
27... Ke7 {[%clk 0:00:18.9]} 28. Rb7+ {[%clk 0:01:20.6]} 28... Kd8 {[%clk
0:00:16.6]} 29. Qf6+ {[%clk 0:01:18.7]} 29... Ne7 {[%clk 0:00:15.9]} 30. Qd6+
{[%clk 0:01:16.1]} 30... Kc8 {[%clk 0:00:14.8]} 31. Qd7# {[%clk 0:01:16.8]} 1-0

[Event "Early-Titled-Tuesday-Blitz-May-14-2024"]
[Site "Chess.com"]
[Date "2024.05.14"]
[Round "5"]
[White "Crazy_girl99"]
[Black "David_Arutinian"]
[Result "0-1"]
[WhiteElo "2649"]
[BlackElo "2839"]
[TimeControl "180+1"]
[EndTime "8:56:18 PDT"]
[Termination "David_Arutinian won by resignation"]

1. Nf3 {[%clk 0:03:00.9]} 1... Nf6 {[%clk 0:02:59]} 2. g3 {[%clk 0:03:00.9]}
2... b5 {[%clk 0:02:58.7]} 3. Bg2 {[%clk 0:03:00.8]} 3... Bb7 {[%clk 0:02:59.3]}
4. d4 {[%clk 0:03:00.9]} 4... e6 {[%clk 0:02:59.2]} 5. O-O {[%clk 0:03:01.2]}
5... c5 {[%clk 0:02:59.7]} 6. c3 {[%clk 0:02:59.6]} 6... Na6 {[%clk 0:02:59.9]}
7. h3 {[%clk 0:02:57.3]} 7... Be7 {[%clk 0:02:59.4]} 8. Be3 {[%clk 0:02:57.3]}
8... O-O {[%clk 0:02:58.7]} 9. Nbd2 {[%clk 0:02:57]} 9... d5 {[%clk 0:02:55.2]}
10. Ne5 {[%clk 0:02:52.7]} 10... Rc8 {[%clk 0:02:52.4]} 11. f4 {[%clk
0:02:50.4]} 11... cxd4 {[%clk 0:02:41.7]} 12. cxd4 {[%clk 0:02:48.3]} 12... Nb4
{[%clk 0:02:42.3]} 13. Bf2 {[%clk 0:02:37.7]} 13... Ne4 {[%clk 0:02:41.7]} 14.
Nxe4 {[%clk 0:02:28.4]} 14... dxe4 {[%clk 0:02:40.8]} 15. a3 {[%clk 0:02:28.6]}
15... Nd5 {[%clk 0:02:35.4]} 16. Bxe4 {[%clk 0:02:27.3]} 16... Ne3 {[%clk
0:02:35.7]} 17. Bxh7+ {[%clk 0:02:21.3]} 17... Kxh7 {[%clk 0:02:32.2]} 18. Bxe3
{[%clk 0:02:21.1]} 18... Qd5 {[%clk 0:02:32]} 19. Nf3 {[%clk 0:02:15.8]} 19...
Kg8 {[%clk 0:02:32.2]} 20. Qd3 {[%clk 0:02:11.3]} 20... Rc4 {[%clk 0:02:28.6]}
21. b3 {[%clk 0:02:09.5]} 21... Rc7 {[%clk 0:02:27.4]} 22. a4 {[%clk 0:02:05.3]}
22... b4 {[%clk 0:02:26.2]} 23. Rac1 {[%clk 0:02:01.3]} 23... Rfc8 {[%clk
0:02:23.6]} 24. Rxc7 {[%clk 0:02:01.4]} 24... Rxc7 {[%clk 0:02:24.5]} 25. Rc1
{[%clk 0:02:00.8]} 25... Rxc1+ {[%clk 0:02:16.1]} 26. Bxc1 {[%clk 0:02:01.7]}
26... Qc6 {[%clk 0:02:16.7]} 27. Bd2 {[%clk 0:02:01.2]} 27... Ba6 {[%clk
0:02:17]} 28. Qe3 {[%clk 0:01:55.2]} 28... Qc2 {[%clk 0:02:15.3]} 29. Kf2 {[%clk
0:01:55.3]} 29... Bf8 {[%clk 0:01:57.3]} 30. Ne5 {[%clk 0:01:52.3]} 30... Qb1
{[%clk 0:01:52.5]} 31. g4 {[%clk 0:01:42.1]} 31... Qh1 {[%clk 0:01:47.6]} 32.
Qf3 {[%clk 0:01:39.6]} 32... Qd1 {[%clk 0:01:39.1]} 33. Be1 {[%clk 0:01:34.1]}
33... Qxd4+ {[%clk 0:01:35.6]} 34. Kg2 {[%clk 0:01:23.3]} 34... Qd1 {[%clk
0:01:28.3]} 35. Kf2 {[%clk 0:01:21.6]} 35... Bc5+ {[%clk 0:01:23.4]} 36. Kf1
{[%clk 0:01:20.5]} 36... Qd4 {[%clk 0:01:07.5]} 37. Bf2 {[%clk 0:01:19.8]} 37...
Qd1+ {[%clk 0:01:07.4]} 38. Be1 {[%clk 0:01:16.6]} 38... Bf8 {[%clk 0:01:06]}
39. f5 {[%clk 0:01:09.4]} 39... exf5 {[%clk 0:01:03.1]} 40. Qxf5 {[%clk
0:01:08.3]} 40... Qxe2+ {[%clk 0:01:02.8]} 41. Kg1 {[%clk 0:01:08]} 41... Qxe1+
{[%clk 0:01:02.7]} 42. Kh2 {[%clk 0:01:08.4]} 42... Qd2+ {[%clk 0:00:52.8]} 43.
Kh1 {[%clk 0:01:04.9]} 43... Bb7+ {[%clk 0:00:51.6]} 0-1

[Event "Early-Titled-Tuesday-Blitz-May-14-2024"]
[Site "Chess.com"]
[Date "2024.05.14"]
[Round "5"]
[White "maracayo"]
[Black "AnaKuchava"]
[Result "1-0"]
[WhiteElo "2371"]
[BlackElo "2196"]
[TimeControl "180+1"]
[EndTime "8:56:18 PDT"]
[Termination "maracayo won on time"]

1. e4 {[%clk 0:03:00.9]} 1... c5 {[%clk 0:00:38.6]} 2. Nf3 {[%clk 0:02:57.2]}
2... d6 {[%clk 0:00:36.9]} 3. d3 {[%clk 0:02:53.5]} 3... Nc6 {[%clk 0:00:35]} 4.
Nbd2 {[%clk 0:02:53.5]} 4... g6 {[%clk 0:00:29.7]} 5. h3 {[%clk 0:02:53.5]} 5...
Nf6 {[%clk 0:00:27]} 6. c3 {[%clk 0:02:54]} 6... Bg7 {[%clk 0:00:23.1]} 7. Be2
{[%clk 0:02:54]} 7... O-O {[%clk 0:00:20]} 8. O-O {[%clk 0:02:53.9]} 8... e6
{[%clk 0:00:17.7]} 9. Re1 {[%clk 0:02:54.1]} 9... Rb8 {[%clk 0:00:16.2]} 10. Nb3
{[%clk 0:02:53.7]} 10... b5 {[%clk 0:00:12.6]} 11. Bf1 {[%clk 0:02:53.5]} 11...
a6 {[%clk 0:00:12.5]} 12. d4 {[%clk 0:02:53]} 12... c4 {[%clk 0:00:12]} 13. Nbd2
{[%clk 0:02:52.8]} 13... Bb7 {[%clk 0:00:12.7]} 14. a4 {[%clk 0:02:47]} 14... e5
{[%clk 0:00:11.4]} 15. axb5 {[%clk 0:02:42.5]} 15... axb5 {[%clk 0:00:11.5]} 16.
d5 {[%clk 0:02:35.3]} 16... Ne7 {[%clk 0:00:09.4]} 17. g3 {[%clk 0:02:32.4]}
17... Nd7 {[%clk 0:00:09.5]} 18. Bg2 {[%clk 0:02:29.4]} 18... Nc5 {[%clk
0:00:09.7]} 19. Nf1 {[%clk 0:02:24.4]} 19... f5 {[%clk 0:00:09.8]} 20. Ng5
{[%clk 0:02:22.9]} 20... h6 {[%clk 0:00:07.6]} 21. Ne6 {[%clk 0:02:18.6]} 21...
Nxe6 {[%clk 0:00:07.6]} 22. dxe6 {[%clk 0:02:19]} 22... f4 {[%clk 0:00:07.5]}
23. Qg4 {[%clk 0:01:57.6]} 23... g5 {[%clk 0:00:04.8]} 24. h4 {[%clk 0:01:50.8]}
24... Ng6 {[%clk 0:00:03.7]} 25. h5 {[%clk 0:01:44.8]} 25... Ne7 {[%clk
0:00:03]} 26. Nh2 {[%clk 0:01:43]} 26... Qc8 {[%clk 0:00:02.4]} 27. Rd1 {[%clk
0:01:20.9]} 1-0

[Event "Early-Titled-Tuesday-Blitz-May-14-2024"]
[Site "Chess.com"]
[Date "2024.05.14"]
[Round "5"]
[White "djano"]
[Black "average_trans"]
[Result "1-0"]
[WhiteElo "2531"]
[BlackElo "2341"]
[TimeControl "180+1"]
[EndTime "8:56:19 PDT"]
[Termination "djano won by resignation"]

1. e4 {[%clk 0:02:59.1]} 1... e6 {[%clk 0:03:00.9]} 2. Qe2 {[%clk 0:02:56.6]}
2... c5 {[%clk 0:03:00.4]} 3. Nf3 {[%clk 0:02:55.9]} 3... Nc6 {[%clk 0:03:00.1]}
4. g3 {[%clk 0:02:56]} 4... Nd4 {[%clk 0:03:00.1]} 5. Nxd4 {[%clk 0:02:56]} 5...
cxd4 {[%clk 0:03:00.8]} 6. Bg2 {[%clk 0:02:56.3]} 6... Bc5 {[%clk 0:02:59.2]} 7.
O-O {[%clk 0:02:53]} 7... Ne7 {[%clk 0:02:59.3]} 8. d3 {[%clk 0:02:52.4]} 8...
Kf8 {[%clk 0:02:54.4]} 9. f4 {[%clk 0:02:52.2]} 9... d5 {[%clk 0:02:51.5]} 10.
Nd2 {[%clk 0:02:47.5]} 10... b6 {[%clk 0:02:44.9]} 11. Nb3 {[%clk 0:02:43.7]}
11... Bb7 {[%clk 0:02:43.6]} 12. Nxc5 {[%clk 0:02:43.4]} 12... bxc5 {[%clk
0:02:43.6]} 13. f5 {[%clk 0:02:43.4]} 13... Ke8 {[%clk 0:02:42.2]} 14. fxe6
{[%clk 0:02:41.8]} 14... fxe6 {[%clk 0:02:42.4]} 15. Qh5+ {[%clk 0:02:41.8]}
15... Kd7 {[%clk 0:02:37.5]} 16. Rf7 {[%clk 0:02:41.4]} 16... Qe8 {[%clk
0:02:33.9]} 17. Bg5 {[%clk 0:02:39.9]} 17... g6 {[%clk 0:02:03.5]} 18. Qf3
{[%clk 0:02:38.9]} 18... Rf8 {[%clk 0:02:03.2]} 19. Rf1 {[%clk 0:02:30.7]} 19...
dxe4 {[%clk 0:01:17.2]} 20. dxe4 {[%clk 0:02:20.6]} 20... Rxf7 {[%clk
0:01:13.9]} 21. Qxf7 {[%clk 0:02:19.9]} 21... Qxf7 {[%clk 0:01:13.8]} 22. Rxf7
{[%clk 0:02:20.8]} 22... Re8 {[%clk 0:01:14.4]} 23. e5 {[%clk 0:02:12.5]} 23...
Bd5 {[%clk 0:01:03]} 24. Rxh7 {[%clk 0:02:00.6]} 24... Bxa2 {[%clk 0:00:59.2]}
25. Be4 {[%clk 0:01:52.3]} 25... Bd5 {[%clk 0:00:31.9]} 26. Bxg6 {[%clk
0:01:49.3]} 26... Rg8 {[%clk 0:00:32]} 27. Rxe7+ {[%clk 0:01:43.4]} 27... Kc6
{[%clk 0:00:27]} 28. Be8+ {[%clk 0:01:42.9]} 28... Kb6 {[%clk 0:00:26.8]} 29. h4
{[%clk 0:01:39.5]} 29... c4 {[%clk 0:00:24.4]} 30. Bf7 {[%clk 0:01:34.6]} 30...
Rc8 {[%clk 0:00:19.8]} 31. Bxe6 {[%clk 0:01:32.1]} 31... Be4 {[%clk 0:00:19.9]}
32. Bxc8 {[%clk 0:01:30]} 1-0

[Event "Early-Titled-Tuesday-Blitz-May-14-2024"]
[Site "Chess.com"]
[Date "2024.05.14"]
[Round "5"]
[White "Aslanov_Umid"]
[Black "Siemba"]
[Result "0-1"]
[WhiteElo "2620"]
[BlackElo "2499"]
[TimeControl "180+1"]
[EndTime "8:56:20 PDT"]
[Termination "Siemba won by resignation"]

1. e4 {[%clk 0:03:00.9]} 1... g6 {[%clk 0:02:59.9]} 2. d4 {[%clk 0:03:00.5]}
2... Bg7 {[%clk 0:03:00.5]} 3. Nc3 {[%clk 0:03:00.7]} 3... d6 {[%clk 0:03:01.1]}
4. Be3 {[%clk 0:03:01.2]} 4... a6 {[%clk 0:03:01.5]} 5. f3 {[%clk 0:03:01.1]}
5... b5 {[%clk 0:03:01.6]} 6. Qd2 {[%clk 0:03:01.8]} 6... Nd7 {[%clk 0:03:00.5]}
7. O-O-O {[%clk 0:03:02.2]} 7... Nb6 {[%clk 0:02:58.3]} 8. Bd3 {[%clk
0:03:01.2]} 8... Bb7 {[%clk 0:02:56]} 9. h4 {[%clk 0:03:00.4]} 9... h5 {[%clk
0:02:54.2]} 10. Nh3 {[%clk 0:03:00.1]} 10... Rc8 {[%clk 0:02:53.9]} 11. Ne2
{[%clk 0:02:29.7]} 11... c5 {[%clk 0:02:52]} 12. dxc5 {[%clk 0:02:23.3]} 12...
dxc5 {[%clk 0:02:50.6]} 13. Bxc5 {[%clk 0:02:23.6]} 13... Bxb2+ {[%clk
0:02:22.4]} 14. Kxb2 {[%clk 0:02:23.5]} 14... Rxc5 {[%clk 0:02:21.5]} 15. Kc1
{[%clk 0:02:09.2]} 15... Qc7 {[%clk 0:02:19.3]} 16. Ng5 {[%clk 0:02:00]} 16...
Nf6 {[%clk 0:02:19.3]} 17. Nf4 {[%clk 0:01:33]} 17... O-O {[%clk 0:02:15.9]} 18.
g4 {[%clk 0:01:23.1]} 18... hxg4 {[%clk 0:02:07.3]} 19. Nge6 {[%clk 0:01:15.1]}
19... fxe6 {[%clk 0:02:05.7]} 20. Nxe6 {[%clk 0:01:12.8]} 20... Qe5 {[%clk
0:02:05.2]} 21. Kb1 {[%clk 0:01:04]} 21... Qxe6 {[%clk 0:02:04]} 22. h5 {[%clk
0:01:04.5]} 22... Rxh5 {[%clk 0:02:02.9]} 23. fxg4 {[%clk 0:01:04.1]} 23... Rxh1
{[%clk 0:01:49.2]} 24. Rxh1 {[%clk 0:01:05]} 24... Bxe4 {[%clk 0:01:45.3]} 25.
Re1 {[%clk 0:00:52.1]} 25... Nc4 {[%clk 0:01:36.6]} 26. Qg5 {[%clk 0:00:36.6]}
26... Qd5 {[%clk 0:01:30]} 27. Qh6 {[%clk 0:00:32.6]} 27... Bxd3 {[%clk
0:01:28.7]} 28. Rxe7 {[%clk 0:00:32.5]} 28... Bxc2+ {[%clk 0:01:27.9]} 29. Kxc2
{[%clk 0:00:30.7]} 29... Qg2+ {[%clk 0:01:04.4]} 30. Kc3 {[%clk 0:00:28.6]}
30... Qb2+ {[%clk 0:01:02.4]} 31. Kd3 {[%clk 0:00:29.1]} 31... Rd8+ {[%clk
0:01:01.3]} 0-1